bitfinex/quotes_ETHUSD_20240530
["timestamp","ask_amount","ask_price","bid_price","bid_amount"]
[1717083461262,0.55,3780.6,3779.8,0.04646648]
[1717083461445,0.55,3780.7,3779.9,0.73464665]
[1717083461639,0.55,3780.7,3780.0,0.04637514]
[1717083462181,2.6451,3780.6,3779.7,7.3]
[1717083462490,3.0,3780.8,3780.1,0.04632531]
[1717083462642,3.0,3780.9,3780.0,2.64546]
[1717083462837,3.0,3780.9,3780.1,0.264546]
[1717083463043,3.0,3780.9,3780.1,0.04633571]
[1717083464341,2.64519,3780.5,3779.7,7.3]
[1717083464542,2.64535,3780.3,3780.2,0.0462068]
[1717083464766,2.64535,3780.3,3779.3,7.3]
[1717083464965,0.55,3780.2,3779.3,7.3]
[1717083465271,2.64549,3780.1,3779.3,7.3]
[1717083465477,0.55,3780.0,3779.3,7.3]
[1717083465952,0.06614988,3779.9,3779.3,7.3]
[1717083467243,3.55,3780.0,3779.3,7.3]
[1717083467643,2.64558,3779.9,3779.3,7.3]
[1717083468248,2.64558,3779.9,3779.0,2.64619]
[1717083469676,0.06614989,3779.8,3779.0,2.64619]
[1717083470590,0.06614989,3779.8,3778.9,19.73]
[1717083471194,2.64558,3779.9,3778.9,24.613873]
[1717083472787,0.55,3779.8,3778.9,24.613873]
[1717083472963,0.55,3779.8,3778.9,22.37623]
[1717083473468,2.64572,3779.7,3778.9,22.37623]
[1717083473686,2.64572,3779.7,3778.9,19.73]
[1717083474051,2.64572,3779.7,3778.9,7.3]
[1717083474295,0.55,3779.6,3778.9,7.3]
[1717083475400,2.7120268,3779.5,3778.3,9.94664]
[1717083475904,1.724,3779.7,3778.3,9.94664]
[1717083475905,2.64601,3779.3,3778.3,9.94664]
[1717083476076,2.64613,3779.1,3778.3,9.94664]
[1717083476275,0.06616472,3779.0,3778.3,9.94664]
[1717083476916,0.55,3778.9,3778.3,7.3]
[1717083477924,3.27122947,3779.0,3778.3,7.3]
[1717083478105,3.0,3779.0,3778.3,7.3]
[1717083478940,2.6463,3778.9,3778.4,0.04607614]
[1717083479497,0.55,3778.8,3777.9,2.64693]
[1717083479803,0.55,3778.8,3778.0,0.04623816]
[1717083480019,2.64641,3778.7,3778.0,0.04623816]
[1717083480220,0.55,3778.6,3778.0,0.04623816]
[1717083481137,1.14412341,3781.5,3778.1,2.69299828]
[1717083481138,2.64618,3779.1,3778.1,2.69299828]
[1717083482429,2.6459,3779.5,3778.4,2.6466]
[1717083482594,2.64563,3779.9,3778.7,2.64637]
[1717083482795,2.64563,3779.9,3778.8,0.264637]
[1717083483135,1.62808769,3780.6,3779.2,2.64605]
[1717083483136,2.64535,3780.3,3779.2,2.64605]
[1717083483540,2.64535,3780.3,3779.3,0.04538395]
[1717083485357,2.64535,3780.3,3779.4,2.64591]
[1717083485559,2.64507,3780.7,3779.6,2.64577]
[1717083485730,1.92168897,3780.6,3779.6,2.64577]
[1717083486078,2.64515,3780.5,3779.7,0.04514086]
[1717083486260,1.724,3780.8,3779.7,0.04514086]
[1717083486433,2.09409715,3780.7,3779.2,2.646]
[1717083486638,1.92169715,3780.6,3779.8,0.04505772]
[1717083486879,1.92169715,3780.6,3779.2,2.646]
[1717083487059,0.06614362,3780.5,3779.0,7.3]
[1717083487259,2.64551,3780.0,3779.3,0.04530692]
[1717083487573,0.76602408,3780.4,3779.1,2.64611]
[1717083487574,3.19525,3780.4,3779.4,0.04525708]
[1717083487759,3.0,3780.3,3779.1,2.64611]
[1717083487966,0.55,3780.2,3779.5,0.04520723]
[1717083488157,0.55,3780.2,3779.4,2.6459]
[1717083488351,2.64544,3780.1,3779.6,0.04506578]
[1717083488583,2.64544,3780.1,3779.2,0.994611]
[1717083488739,2.64544,3780.1,3779.7,0.04501594]
[1717083489250,2.64544,3780.1,3779.3,3.7400361]
[1717083489479,2.64544,3780.1,3779.8,0.04496611]
[1717083489780,0.55,3780.2,3779.3,3.7400361]
[1717083489781,0.55,3780.2,3779.9,0.04491627]
[1717083489960,0.55,3780.2,3779.3,3.7400361]
[1717083490163,2.64519,3780.5,3780.0,0.04484563]
[1717083490474,5.64491,3780.9,3779.6,2.64576]
[1717083490674,2.64509,3780.6,3780.1,0.0447958]
[1717083490880,2.64509,3780.6,3779.6,2.64576]
[1717083491077,2.64509,3780.6,3779.5,7.3]
[1717083491078,2.64509,3780.6,3780.2,0.04474389]
[1717083491281,2.64545,3780.1,3779.5,7.3]
[1717083491667,1.724,3780.4,3779.6,0.04503872]
[1717083492009,0.55,3780.3,3779.6,0.04503872]
[1717083492211,0.55,3780.4,3779.6,0.04503872]
[1717083493408,0.916759,3780.4,3779.6,0.04503872]
[1717083495307,0.55,3780.4,3779.6,0.04503872]
[1717083496238,0.55,3780.4,3779.7,2.6457]
[1717083496580,0.55,3780.4,3779.8,0.04488701]
[1717083497814,0.55,3780.4,3779.5,7.3]
[1717083498019,0.55,3780.4,3779.9,0.04485799]
[1717083498255,0.916759,3780.4,3779.5,7.3]
[1717083498459,0.916759,3780.4,3780.0,0.04480816]
[1717083498655,0.916759,3780.4,3779.5,7.3]
[1717083498993,0.916759,3780.4,3779.6,0.0450075]
[1717083499556,0.3561949,3780.3,3779.6,0.0450075]
[1717083499692,0.55,3780.2,3779.6,0.0450075]
[1717083500958,3.19536,3780.2,3779.6,0.0450075]
[1717083502644,0.55,3780.2,3779.6,0.0450075]
[1717083502797,2.64557,3779.9,3779.6,0.0450075]
[1717083503141,0.55,3779.8,3779.6,0.0450075]
[1717083503349,2.64557,3779.9,3779.6,0.0450075]
[1717083503350,2.788,3781.7,3779.6,0.77950825]
[1717083503510,2.64421,3781.9,3779.6,0.77950825]
[1717083503511,2.47166163,3781.0,3780.0,2.64548]
[1717083503709,1.92166163,3781.0,3780.3,2.64528]
[1717083503923,16.06232455,3782.4,3780.5,2.6451]
[1717083503924,1.92166163,3780.9,3780.5,2.6451]
[1717083504109,2.64451,3781.5,3780.5,2.6451]
[1717083504409,2.64451,3781.5,3780.6,0.04451758]
[1717083504616,2.64451,3781.5,3780.6,0.30902758]
[1717083505437,0.55,3781.4,3780.6,0.30902758]
[1717083506215,0.55,3781.4,3780.6,0.04451758]
[1717083506415,2.64459,3781.3,3780.6,0.04451758]
[1717083506649,0.55,3781.2,3780.6,0.04451758]
[1717083507506,0.55,3781.5,3780.6,0.04451758]
[1717083507840,2.64408,3782.1,3781.0,2.64477]
[1717083508058,2.64408,3782.1,3781.1,0.31736573]
[1717083508218,2.64408,3782.1,3781.2,2.64464]
[1717083508845,2.64408,3782.1,3781.3,0.04383813]
[1717083509613,0.55,3782.0,3781.4,2.64451]
[1717083509816,2.64379,3782.5,3781.4,2.68829834]
[1717083510035,0.55,3782.4,3781.4,2.68829834]
[1717083513658,2.64351,3782.9,3781.7,2.64427]
[1717083513958,4.724,3783.1,3781.7,2.64427]
[1717083513959,2.64363,3782.7,3781.8,0.0434873]
[1717083514863,2.64385,3782.4,3781.8,0.0434873]
[1717083515163,2.64399,3782.2,3781.6,7.3]
[1717083515361,0.33711787,3782.1,3781.9,0.04137545]
[1717083515660,0.33711787,3782.1,3781.3,2.64454]
[1717083515862,0.27100982,3782.1,3782.0,0.04132567]
[1717083516033,0.82100982,3782.1,3781.3,2.64454]
[1717083516241,0.55,3782.0,3781.3,2.64454]
[1717083516468,0.55,3782.0,3781.4,0.04162437]
[1717083517424,0.55,3782.1,3781.4,0.04162437]
[1717083518337,2.6441,3782.0,3781.4,0.04162437]
[1717083518669,0.55,3781.9,3781.2,7.3]
[1717083518830,0.55,3781.9,3781.5,0.04157458]
[1717083519030,0.55,3781.9,3781.2,7.3]
[1717083519357,2.64424,3781.8,3781.2,7.3]
[1717083519549,2.64439,3781.6,3781.2,7.3]
[1717083519865,0.55,3781.5,3781.3,0.04161035]
[1717083520168,2.64452,3781.4,3781.2,7.3]
[1717083520470,0.55,3781.3,3781.2,7.3]
[1717083520766,2.64427,3781.8,3780.8,2.64488]
[1717083520941,0.55,3781.7,3780.8,2.64488]
[1717083521332,2.64401,3782.2,3780.8,2.64488]
[1717083521531,4.1708387,3782.1,3780.8,9.94488]
[1717083521972,2.64414,3782.0,3780.8,9.94488]
[1717083522121,3.55,3781.9,3780.8,9.94488]
[1717083523526,2.64427,3781.8,3780.8,9.94488]
[1717083523976,2.64427,3781.8,3780.8,10.939368]
[1717083524134,2.64427,3781.8,3780.9,0.04201711]
[1717083525475,2.64446,3781.5,3780.9,0.04201711]
[1717083526671,6.19422,3781.9,3780.9,0.04201711]
[1717083527572,2.64439,3781.6,3780.9,0.04201711]
[1717083527772,0.55,3781.5,3780.9,0.04201711]
[1717083531871,2.64453,3781.4,3780.9,0.04201711]
[1717083532070,2.64467,3781.2,3780.9,0.04201711]
[1717083532255,2.6448,3781.0,3780.9,0.04201711]
[1717083532463,2.6448,3781.0,3780.4,7.3]
[1717083532786,2.64497,3780.8,3780.0,19.73]
[1717083533082,2.64497,3780.8,3780.0,9.537551]
[1717083533292,0.55,3780.7,3780.0,7.3]
[1717083533499,2.64472,3781.2,3780.1,2.64538]
[1717083533653,0.55,3781.1,3780.1,2.64538]
[1717083533854,2.64472,3781.2,3780.3,2.64528]
[1717083534493,3.0,3781.5,3780.3,2.64528]
[1717083534792,0.55,3781.4,3780.6,2.64506]
[1717083534978,2.64453,3781.4,3780.7,0.264506]
[1717083535665,0.55,3781.5,3780.7,0.264506]
[1717083535989,2.64439,3781.6,3780.7,0.264506]
[1717083536156,2.64439,3781.6,3780.6,2.64506]
[1717083536157,0.55,3781.5,3780.6,2.64506]
[1717083538796,0.55,3781.5,3780.7,0.04241773]
[1717083539253,0.55,3781.5,3780.8,2.64492]
[1717083539453,0.55,3781.5,3780.8,2.68728792]
[1717083540383,5.64416,3782.0,3780.8,2.68728792]
[1717083540585,0.55,3781.9,3780.9,0.26872879]
[1717083540784,2.64426,3781.8,3780.9,0.31109674]
[1717083540963,2.64439,3781.6,3780.9,0.04236795]
[1717083541670,0.55,3781.9,3780.9,0.04236795]
[1717083542296,2.64424,3781.8,3780.9,0.04236795]
[1717083542493,0.55,3781.7,3780.9,0.04236795]
[1717083542683,0.55,3781.7,3781.0,2.64477]
[1717083542887,2.64424,3781.8,3781.0,2.64477]
[1717083543191,2.64424,3781.8,3781.1,0.04226834]
[1717083543598,2.64403,3782.2,3781.1,0.04226834]
[1717083543820,0.57170862,3782.1,3781.2,2.64463]
[1717083544099,2.64403,3782.2,3781.4,2.64447]
[1717083544458,2.64403,3782.2,3781.5,0.04191551]
[1717083545290,2.64418,3781.9,3781.5,0.04191551]
[1717083545456,2.64434,3781.7,3781.0,7.3]
[1717083545660,2.64434,3781.7,3781.6,0.04178684]
[1717083545860,3.19434,3781.7,3781.0,7.3]
[1717083546117,0.869434,3781.6,3781.0,7.3]
[1717083546416,2.64449,3781.5,3781.0,7.3]
[1717083546577,2.6446,3781.3,3781.0,7.3]
[1717083546901,0.55,3781.2,3780.4,7.3]
[1717083547199,0.55,3781.2,3780.5,2.64515]
[1717083548309,0.55,3781.2,3780.4,9.94560763]
[1717083548310,0.55,3781.2,3780.4,7.3]
[1717083548513,2.64477,3781.1,3780.4,7.3]
[1717083548809,0.55,3781.0,3780.4,7.3]
[1717083550305,0.55,3781.0,3780.1,15.07538]
[1717083550474,0.55,3781.0,3780.2,2.237538]
[1717083550681,0.55,3781.0,3780.1,2.64538]
[1717083552991,0.55,3781.0,3780.4,2.64518]
[1717083553196,3.57181738,3781.4,3780.4,2.64518]
[1717083553503,0.55,3781.3,3780.4,2.64518]
[1717083553692,0.55,3781.3,3780.5,0.264518]
[1717083553893,0.55,3781.3,3780.7,2.64499]
[1717083554113,0.55,3781.4,3780.7,2.64499]
[1717083554319,0.55,3781.4,3780.8,0.04118719]
[1717083554504,0.55,3781.7,3780.9,0.26861772]
[1717083554704,0.55,3781.7,3780.7,2.64499]
[1717083554705,2.64439,3781.6,3780.7,2.64499]
[1717083554915,0.55,3781.5,3780.7,2.64499]
[1717083555220,0.55,3781.5,3780.8,0.04118719]
[1717083556500,1.169439,3781.5,3780.8,0.04118719]
[1717083557331,2.64452,3781.4,3780.6,7.3]
[1717083557620,2.64467,3781.2,3780.6,7.3]
[1717083557821,2.64467,3781.2,3780.7,0.041237]
[1717083558028,0.55,3781.1,3780.7,0.041237]
[1717083558223,2.6448,3781.0,3780.7,0.041237]
[1717083558433,0.55,3780.9,3780.7,0.041237]
[1717083559121,2.64494,3780.8,3780.2,12.43]
[1717083559423,0.55,3780.7,3780.2,12.43]
[1717083561930,0.55,3780.7,3779.9,2.64551]
[1717083562134,0.55,3780.7,3780.0,2.64560763]
[1717083563747,0.55,3780.7,3779.9,2.64551]
[1717083566056,2.64514,3780.6,3779.7,42.3]
[1717083566220,0.55,3780.5,3779.7,42.3]
[1717083568910,0.55,3780.5,3779.8,0.04166672]
[1717083569833,0.55,3780.5,3779.9,35.0]
[1717083570056,0.55,3780.5,3779.9,35.04161689]
[1717083570924,2.64522,3780.4,3779.9,35.04161689]
[1717083571131,0.55,3780.3,3779.9,35.04161689]
[1717083572647,2.64536,3780.2,3779.9,0.04161689]
[1717083572820,2.64536,3780.2,3779.7,7.3]
[1717083573155,2.64536,3780.2,3780.0,0.04156706]
[1717083573366,2.64536,3780.2,3779.7,7.3]
[1717083573518,2.64536,3780.2,3780.1,0.04151723]
[1717083573720,3.19536,3780.2,3779.5,35.0]
[1717083573952,2.64536,3780.2,3780.1,0.0416751]
[1717083574158,3.19536,3780.2,3779.5,35.0]
[1717083574363,2.64536,3780.2,3780.1,0.0416751]
[1717083574563,3.19536,3780.2,3779.5,35.0]
[1717083574758,2.64536,3780.2,3780.1,0.0416751]
[1717083574947,3.19536,3780.2,3779.5,35.0]
[1717083575124,3.19536,3780.2,3780.1,0.0416751]
[1717083575320,3.19536,3780.2,3779.5,35.0]
[1717083575967,3.19536,3780.2,3779.6,0.04192426]
[1717083577874,0.55,3780.1,3779.6,0.04192426]
[1717083578060,0.55,3780.1,3779.4,7.3]
[1717083578262,2.64551,3780.0,3779.7,0.04187442]
[1717083578461,0.55,3779.9,3779.4,7.3]
[1717083578638,0.55,3779.9,3779.8,0.04182459]
[1717083578843,0.55,3779.9,3779.2,35.0]
[1717083579065,0.55,3779.9,3779.8,0.04182459]
[1717083579359,0.55,3779.9,3779.3,2.64596]
[1717083579526,0.55,3779.9,3779.8,0.04182459]
[1717083579859,2.64545,3780.1,3779.8,0.04182459]
[1717083580160,0.55,3780.0,3779.4,35.0]
[1717083580529,0.55,3780.0,3779.5,0.0419741]
[1717083580733,2.64559,3779.9,3779.5,0.0419741]
[1717083581051,0.55,3779.8,3779.5,0.0419741]
[1717083581579,0.869559,3779.8,3779.5,0.0419741]
[1717083581733,2.64571,3779.7,3779.5,0.0419741]
[1717083581919,2.64571,3779.7,3778.9,7.3]
[1717083581920,0.55,3779.6,3779.0,35.0]
[1717083583967,0.55,3779.6,3779.1,0.04217349]
[1717083585353,2.6455,3780.0,3779.2,2.64606]
[1717083585354,0.55,3779.9,3779.2,2.64606]
[1717083585578,0.55,3779.9,3779.2,3.64488335]
[1717083585801,0.55,3779.9,3779.3,35.04241655]
[1717083587196,0.55,3780.2,3779.3,35.04241655]
[1717083587880,0.55,3780.2,3779.3,0.04241655]
[1717083590698,2.64509,3780.6,3779.3,0.04241655]
[1717083591102,2.64509,3780.6,3779.4,35.0]
[1717083591305,2.64509,3780.6,3779.4,35.04231681]
[1717083591980,2.64509,3780.6,3779.7,2.64571]
[1717083592506,2.64509,3780.6,3779.8,0.04211745]
[1717083592709,0.55,3780.5,3779.8,0.04211745]
[1717083593201,2.64522,3780.4,3779.8,0.04211745]
[1717083593405,0.55,3780.3,3779.8,0.04211745]
[1717083593611,0.55,3780.3,3779.3,2.64592]
[1717083593818,0.55,3780.3,3779.9,0.04201568]
[1717083594025,0.55,3780.3,3779.3,2.64592]
[1717083594230,0.55,3780.3,3780.0,0.04196585]
[1717083594529,0.55,3780.3,3779.4,0.04226487]
[1717083594836,0.55,3780.3,3780.1,0.04191602]
[1717083594986,0.55,3780.3,3779.3,2.64592]
[1717083595182,0.55,3780.3,3779.5,2.64583]
[1717083595613,0.55,3780.3,3779.6,0.04216518]
[1717083596221,0.55,3780.3,3779.7,2.64567]
[1717083596419,1.1219161,3780.6,3779.7,2.64567]
[1717083596715,0.37669261,3780.5,3779.8,0.04206551]
[1717083597014,0.55,3780.4,3779.8,0.04206551]
[1717083604440,1.269,3780.4,3779.8,0.04206551]
[1717083605443,0.719,3780.2,3779.8,0.04206551]
[1717083605601,0.55,3780.1,3779.4,9.94591]
[1717083605798,0.55,3780.1,3779.4,2.64591]
[1717083606246,0.55,3780.1,3779.5,0.04226073]
[1717083607637,0.391435,3780.0,3779.5,0.04226073]
[1717083607845,0.719,3779.6,3779.5,0.04226073]
[1717083608022,0.55,3779.9,3779.0,7.3]
[1717083608023,2.64577,3779.7,3779.0,7.3]
[1717083608224,1.269,3779.6,3779.0,7.3]
[1717083611649,2.64588,3779.5,3779.0,7.3]
[1717083611833,0.719,3779.3,3778.6,7.3]
[1717083612014,0.719,3779.3,3778.6,1.579548]
[1717083612214,0.719,3779.3,3778.5,2.64648]
[1717083612728,0.55,3779.2,3778.5,2.64648]
[1717083613737,0.55,3779.2,3778.6,0.04270941]
[1717083617460,0.719,3779.0,3778.6,0.04270941]
[1717083618927,0.55,3779.2,3778.6,0.04270941]
[1717083619122,0.55,3779.4,3778.7,2.64638]
[1717083619352,0.55,3779.4,3778.7,2.68920375]
[1717083619663,0.55,3779.5,3778.7,2.68920375]
[1717083619893,0.719,3779.5,3778.7,2.68920375]
[1717083620061,0.719,3779.5,3778.7,3.05691602]
[1717083620372,0.55,3779.4,3778.7,3.05691602]
[1717083621137,0.719,3779.3,3778.7,2.68920375]
[1717083621344,0.55,3779.2,3778.7,2.68920375]
[1717083623786,0.719,3779.3,3778.7,2.68920375]
[1717083624014,0.719,3779.7,3778.7,2.68920375]
[1717083624290,2.64487,3781.0,3779.8,2.64562]
[1717083624445,0.719,3780.8,3779.9,0.05290507]
[1717083624643,2.64487,3781.0,3780.0,3.36449]
[1717083624927,2.64456,3781.4,3780.0,2.68778836]
[1717083625198,2.64456,3781.4,3780.5,2.64513]
[1717083625360,2.64456,3781.4,3780.5,2.981543]
[1717083625549,0.719,3781.4,3780.6,0.04195577]
[1717083625749,2.64428,3781.8,3780.6,0.04195577]
[1717083625947,0.719,3781.4,3780.6,0.04195577]
[1717083626190,0.719,3781.3,3780.6,0.04195577]
[1717083626395,2.64428,3781.8,3780.6,0.04195577]
[1717083626693,0.264428,3781.7,3780.7,2.645]
[1717083627192,0.264428,3781.7,3780.7,2.68689972]
[1717083627549,3.264428,3781.7,3780.7,2.68689972]
[1717083627989,0.55,3781.6,3780.7,2.68689972]
[1717083628164,1.1958708,3781.6,3780.7,2.68689972]
[1717083630193,0.41438221,3782.1,3780.7,2.68689972]
[1717083630194,2.64398,3782.2,3781.0,2.64476]
[1717083630558,2.64398,3782.2,3781.2,2.6446]
[1717083630959,2.64398,3782.2,3781.3,0.04125189]
[1717083631262,2.64398,3782.2,3781.3,0.07010243]
[1717083632011,0.55,3782.1,3781.3,0.07010243]
[1717083633098,4.724,3782.5,3781.4,2.64451]
[1717083633436,4.724,3782.5,3781.4,2.71454183]
[1717083633579,3.0,3782.5,3781.4,2.71454183]
[1717083633767,0.41430096,3782.8,3781.7,2.6443]
[1717083633967,0.41430096,3782.8,3781.5,0.05288293]
[1717083633968,2.64341,3783.0,3781.9,2.64413]
[1717083634525,2.64341,3783.0,3782.0,0.06970571]
[1717083635076,4.36707,3783.5,3782.1,2.64402]
[1717083635316,4.36707,3783.5,3782.2,0.06941368]
[1717083636220,3.0,3783.4,3782.2,0.06941368]
[1717083636509,1.3281289,3783.3,3782.2,0.06941368]
[1717083636729,1.3281289,3783.3,3782.3,2.64388]
[1717083637020,1.3281289,3783.3,3782.3,2.71324315]
[1717083639345,0.55,3783.3,3782.3,2.71324315]
[1717083639844,0.55,3783.4,3782.3,2.71324315]
[1717083642719,0.55,3783.4,3782.6,2.64364]
[1717083643217,0.55,3783.4,3782.7,0.06829318]
[1717083643678,0.55,3783.7,3782.7,0.06829318]
[1717083643885,1.341681,3783.7,3782.7,0.06829318]
[1717083644196,1.341681,3783.7,3781.2,7.3]
[1717083644197,2.64399,3782.2,3781.2,7.3]
[1717083644401,2.6441,3782.0,3781.2,7.3]
[1717083644886,0.55,3781.9,3781.2,7.3]
[1717083645230,2.64432,3781.7,3781.2,7.3]
[1717083646942,2.64446,3781.5,3781.2,7.3]
[1717083647386,0.55,3781.4,3781.2,7.3]
[1717083647585,0.55,3781.4,3780.6,19.73]
[1717083649909,2.64302,3783.6,3780.6,7.3]
[1717083650229,2.64378,3782.5,3781.4,2.64446]
[1717083651522,2.6435,3782.9,3781.7,2.64427]
[1717083651722,2.6435,3782.9,3781.8,0.264427]
[1717083651930,2.6435,3782.9,3781.8,0.31650098]
[1717083652427,2.6435,3782.9,3781.9,2.64417]
[1717083652932,2.6435,3782.9,3782.0,0.05197289]
[1717083653086,2.6435,3782.9,3782.1,0.29605699]
[1717083653522,2.6435,3782.9,3782.2,0.05187182]
[1717083653710,2.6435,3782.9,3782.2,35.05187182]
[1717083657821,2.6435,3782.9,3782.2,0.05187182]
[1717083660846,2.64322,3783.3,3782.2,0.05187182]
[1717083661980,2.64296,3783.7,3782.8,35.31076156]
[1717083662361,2.64296,3783.7,3782.9,2.64344]
[1717083662565,2.64296,3783.7,3782.9,2.68973513]
[1717083664374,2.64296,3783.7,3783.0,35.0]
[1717083664578,2.64296,3783.7,3783.0,35.04617843]
[1717083666326,0.264296,3783.6,3783.0,35.04617843]
[1717083666542,0.264296,3783.6,3783.0,0.04617843]
[1717083666778,0.55,3783.5,3782.5,2.64369]
[1717083666933,0.55,3783.5,3783.1,0.04615274]
[1717083667135,0.55,3783.5,3782.8,2.64353]
[1717083667447,0.55,3783.5,3783.2,0.04610223]
[1717083667663,0.55,3783.6,3782.8,2.64353]
[1717083667875,0.55,3783.6,3783.3,0.04607861]
[1717083668175,0.55,3783.6,3783.4,0.0460281]
[1717083668381,0.55,3783.6,3782.8,2.64353]
[1717083668570,0.55,3783.6,3783.5,0.0459776]
[1717083668897,0.55,3783.6,3782.8,2.64353]
[1717083669098,0.55,3783.6,3783.5,0.04598587]
[1717083669399,0.55,3783.6,3783.5,0.04598381]
[1717083669537,0.55,3783.6,3782.8,2.64353]
[1717083669731,0.55,3783.6,3783.5,0.04598381]
[1717083669935,0.55,3783.6,3782.8,2.64353]
[1717083670149,0.55,3783.6,3783.5,0.04598381]
[1717083670368,0.55,3783.6,3782.8,2.64353]
[1717083670576,1.724,3784.1,3783.5,0.04598381]
[1717083670577,4.36669,3784.1,3783.5,0.04598381]
[1717083670758,3.55,3784.0,3782.8,2.64353]
[1717083670963,2.64278,3783.9,3783.6,0.04593331]
[1717083671138,0.55,3783.8,3782.8,2.64353]
[1717083671333,0.55,3783.8,3783.7,0.04588281]
[1717083671573,0.55,3783.8,3782.8,2.64353]
[1717083671790,0.55,3783.8,3783.7,0.04588281]
[1717083671943,0.55,3783.8,3782.8,2.64353]
[1717083672140,0.55,3783.8,3783.7,0.04588281]
[1717083672378,0.55,3783.8,3782.8,2.64353]
[1717083672572,0.55,3783.8,3783.7,0.04588281]
[1717083672779,0.55,3783.8,3782.8,2.64353]
[1717083673081,1.39305962,3783.8,3783.7,0.04588281]
[1717083673286,1.39305962,3783.8,3782.8,2.64353]
[1717083673287,1.39305962,3783.8,3782.9,42.3]
[1717083673650,0.55,3783.8,3783.0,0.04623634]
[1717083673843,2.64278,3783.9,3783.0,0.04623634]
[1717083674467,2.23781622,3784.1,3783.0,2.68956634]
[1717083674468,0.51381622,3784.1,3783.0,2.68956634]
[1717083674671,0.55,3784.0,3783.0,2.68956634]
[1717083674869,0.55,3784.1,3783.0,2.68956634]
[1717083675070,0.319256,3784.0,3783.0,2.64333]
[1717083675284,0.55,3783.9,3783.1,0.04596183]
[1717083676441,2.64256,3784.2,3783.2,2.64325]
[1717083676891,0.55,3784.1,3783.4,2.64311]
[1717083677242,0.55,3784.1,3783.5,0.04575154]
[1717083678365,3.0,3784.5,3783.5,0.04575154]
[1717083678564,3.55,3784.4,3783.6,2.64297]
[1717083678754,3.55,3784.4,3783.6,2.68710647]
[1717083678958,0.55,3784.4,3783.6,2.68710647]
[1717083679140,2.64235,3784.6,3783.6,2.68710647]
[1717083679344,2.64235,3784.6,3783.6,3.68581712]
[1717083680372,2.64235,3784.6,3783.6,2.68710647]
[1717083688405,0.55,3784.5,3783.6,2.68710647]
[1717083688709,2.64235,3784.6,3783.7,0.05285191]
[1717083689023,2.64173,3785.4,3784.1,2.64257]
[1717083689159,0.5712388,3785.3,3784.2,0.264257]
[1717083689501,2.64173,3785.4,3784.3,2.64249]
[1717083689874,2.64173,3785.4,3784.4,0.04219682]
[1717083691056,2.64173,3785.4,3784.5,35.0]
[1717083691381,2.64173,3785.4,3784.6,1.7998374]
[1717083692479,2.64147,3785.8,3784.7,0.05283544]
[1717083692805,2.64147,3785.8,3784.6,4.4420574]
[1717083692806,2.64147,3785.8,3784.8,0.04199494]
[1717083692994,2.64147,3785.8,3784.8,2.6421]
[1717083693196,2.64147,3785.8,3784.9,0.09456225]
[1717083693402,2.64147,3785.8,3785.0,2.10662922]
[1717083693561,2.64147,3785.8,3785.0,2.09547965]
[1717083694195,2.64147,3785.8,3785.0,0.04168113]
[1717083694372,2.64147,3785.8,3784.8,2.6421]
[1717083694568,2.64147,3785.8,3785.1,0.04163067]
[1717083694795,2.64147,3785.8,3784.8,2.6421]
[1717083695005,2.64147,3785.8,3785.2,0.04158021]
[1717083695156,0.264147,3785.7,3784.8,2.6421]
[1717083695355,0.264147,3785.7,3784.9,0.04173159]
[1717083695871,3.1916,3785.6,3784.9,0.04173159]
[1717083696297,3.1916,3785.6,3784.6,7.3]
[1717083696499,3.1916,3785.6,3785.0,0.04168113]
[1717083696659,0.3455747,3785.5,3784.6,7.3]
[1717083696859,2.64174,3785.4,3785.1,0.04163067]
[1717083697105,2.64174,3785.4,3784.6,7.3]
[1717083697106,2.64186,3785.2,3784.6,7.3]
[1717083697285,0.491586,3785.1,3784.6,7.3]
[1717083697601,2.642,3785.0,3784.1,7.3]
[1717083697818,2.64223,3784.7,3784.1,7.3]
[1717083698307,2.64239,3784.5,3784.1,7.3]
[1717083700346,2.64249,3784.3,3784.1,7.3]
[1717083702309,2.64249,3784.3,3783.5,7.3]
[1717083702476,2.64273,3784.0,3783.5,7.3]
[1717083702682,2.64273,3784.0,3783.1,12.43]
[1717083703830,2.64244,3784.4,3783.2,0.04270973]
[1717083704040,2.64244,3784.4,3783.3,2.64319]
[1717083704188,2.64244,3784.4,3783.3,2.68591538]
[1717083704390,2.64244,3784.4,3783.6,2.64295]
[1717083704698,2.64244,3784.4,3783.7,0.264295]
[1717083704904,2.64244,3784.4,3783.7,35.30681425]
[1717083706292,2.64244,3784.4,3783.7,35.04251925]
[1717083706707,2.64244,3784.4,3783.7,0.04251925]
[1717083706990,2.64244,3784.4,3783.2,2.64322]
[1717083707329,2.64244,3784.4,3783.8,0.04235918]
[1717083707534,2.64244,3784.4,3783.3,35.0]
[1717083707704,2.64244,3784.4,3783.9,0.04230869]
[1717083707895,2.64244,3784.4,3783.3,37.64560763]
[1717083708093,2.64244,3784.4,3784.0,0.04230161]
[1717083708397,2.64244,3784.4,3784.1,0.04225113]
[1717083708593,2.64244,3784.4,3783.5,7.3]
[1717083708906,3.25855597,3784.3,3784.2,0.04220064]
[1717083709109,2.64326,3783.2,3783.1,12.43]
[1717083709306,2.64326,3783.2,3782.4,7.3]
[1717083709797,2.64343,3783.0,3782.5,0.04322458]
[1717083711590,2.64343,3783.0,3782.6,35.0]